fUST/lending_fUST_20250423
["ID","MTS","AMOUNT","RATE_DAILY","PERIOD"]
[358713248,1745399465097,-153.0,0.00020795,2]
[358713249,1745399465112,-153.0,0.00020795,2]
[358713250,1745399465127,-153.0,0.00020795,2]
[358713251,1745399465142,-153.0,0.00020795,2]
[358713252,1745399465158,-500.0,0.00020795,2]
[358713253,1745399465172,-500.0,0.00020795,2]
[358713254,1745399465187,-500.0,0.00020795,2]
[358713255,1745399465306,-500.0,0.00020795,2]
[358713256,1745399465320,-1787.6,0.00020795,2]
[358713257,1745399465329,-500.0,0.00020795,2]
[358713258,1745399465339,-500.0,0.00020795,2]
[358713259,1745399465348,-500.0,0.00020795,2]
[358713260,1745399465357,-500.0,0.00020795,2]
[358713261,1745399465367,-500.0,0.00020795,2]
[358713262,1745399465376,-1299.18,0.00020795,2]
[358713263,1745399465385,-6832.67,0.00020795,2]
[358713264,1745399465395,-293344.20543259,0.00020797,2]
[358713265,1745399465579,-625.96698777,0.00020797,2]
[358713266,1745399465591,-59681.08358058,0.00020797,2]
[358713267,1745399465603,-21983.86584306,0.00020797,2]
[358713268,1745399468120,263.29277075,0.00019944,2]
[358713269,1745399471317,-500.0,0.00020045,2]
[358713270,1745399490214,-500.0,0.00020045,2]
[358713271,1745399492623,486.2683292,0.00019999,2]
[358713272,1745399493831,-348.45330473,0.00020045,2]
[358713273,1745399497051,-152.0,0.00020045,2]
[358713274,1745399529212,-161.72406918,0.00020044,2]
[358713275,1745399543553,-138.27593082,0.00020044,2]
[358713276,1745399543575,-23.44813836,0.00020045,2]
[358713277,1745399547408,-272.63558683,0.00020045,2]
[358713278,1745399551590,-55.32291377,0.00020045,2]
[358713279,1745399551613,-144.67272633,0.00020045,2]
[358713280,1745399561175,-216.11316556,0.00020045,2]
[358713281,1745399582899,-161.72406918,0.00020044,2]
[358713282,1745399633283,-250.0,0.00020042,2]
[358713283,1745399636200,878.62080988,0.00019945,2]
[358713284,1745399641832,-175.21546717,0.00020042,2]
[358713285,1745399671544,2000.0,0.0002,2]
[358713286,1745399672100,-155.8616275,0.00020042,2]
[358713287,1745399672124,-204.26631501,0.00020044,2]
[358713288,1745399672336,2000.0,0.0002,2]
[358713289,1745399672611,2000.0,0.0002,2]
[358713290,1745399672956,2000.0,0.0002,2]
[358713291,1745399673411,2000.0,0.0002,2]
[358713292,1745399673781,2000.0,0.0002,2]
[358713293,1745399674219,2000.0,0.0002,2]
[358713294,1745399674429,2000.0,0.0002,2]
[358713295,1745399674675,2000.0,0.0002,2]
[358713296,1745399674938,2000.0,0.0002,2]
[358713297,1745399691428,175.21546717,0.00019945,2]
[358713298,1745399691973,-95.73368499,0.00020044,2]
[358713299,1745399691997,-79.48178218,0.00020045,2]
[358713300,1745399700072,-344.46463436,0.00020044,2]
[358713301,1745399718612,-155.53536564,0.00020044,2]
[358713302,1745399718636,-152.27195773,0.00020044,2]
[358713303,1745399724168,-147.72804227,0.00020044,2]
[358713304,1745399724191,-72.71843687,0.00020044,2]
[358713305,1745399729403,-119.28156313,0.00020044,2]
[358713306,1745399729427,-94.8039705,0.00020044,2]
[358713307,1745399735968,-220.07641515,0.00020044,2]
[358713308,1745399745351,-286.39709466,0.00020044,2]
[358713309,1745399745374,-213.60290534,0.00020044,2]
[358713310,1745399748496,-435.2411199,0.00020044,2]
[358713311,1745399762579,-0.52044191,0.00020044,2]
[358713312,1745399762606,-178.30177549,0.00020044,2]
[358713313,1745399767432,-300.0,0.00020043,2]
[358713314,1745399767460,-199.71021879,0.00020044,2]
[358713315,1745399771643,-121.98800572,0.00020044,2]
[358713316,1745399771673,-199.71021879,0.00020044,2]
[358713317,1745399780893,1000.0,0.00019944,2]
[358713318,1745399785393,-250.0,0.00020044,2]
[358713319,1745399799790,-181.98918486,0.00020043,2]
[358713320,1745399822800,553.90851795,0.00019944,2]
[358713321,1745399823374,-235.762005,0.00020043,2]
[358713322,1745399824016,168.06839654,0.00019942,2]
[358713323,1745399835179,250.0,0.00019944,2]
[358713324,1745399846800,-157.24190575,0.00020042,2]
[358713325,1745399858089,-142.75809425,0.00020042,2]
[358713326,1745399858112,-15.66083375,0.00020042,2]
[358713327,1745399883597,-145.99709422,0.00020042,2]
[358713328,1745399883624,-29.73040953,0.00020042,2]
[358713329,1745399913637,-270.26959047,0.00020042,2]
[358713330,1745399913660,-110.88164109,0.00020043,2]
[358713331,1745399917563,-152.0,0.00020042,2]
[358713332,1745399924214,460.76718436,0.00019942,2]
[358713333,1745399924773,-229.461972,0.00020042,2]
[358713334,1745399943474,-152.79044411,0.00020041,2]
[358713335,1745400003004,-156.53744209,0.00020042,2]
[358713336,1745400004638,-152.0,0.00020041,2]
[358713337,1745400013315,-148.0,0.00020041,2]
[358713338,1745400013339,-59.1216,0.00020041,2]
[358713339,1745400013840,484.66995318,0.00019942,2]
[358713340,1745400017365,-200.08688984,0.00020041,2]
[358713342,1745400026087,-300.0,0.00020041,2]
[358713343,1745400032980,-40.79151016,0.00020041,2]
[358713344,1745400033004,-218.37026628,0.00020041,2]
[358713345,1745400042606,-81.62973372,0.00020041,2]
[358713346,1745400042629,-70.37026628,0.00020041,2]
[358713347,1745400048751,-240.992,0.00020041,2]
[358713348,1745400053903,-190.35463186,0.00020041,2]
[358713349,1745400053928,-165.08807758,0.00020041,2]
[358713350,1745400059822,-300.0,0.00020041,2]
[358713351,1745400064705,-152.0,0.0002004,2]
[358713352,1745400068886,-148.0,0.0002004,2]
[358713353,1745400068909,-34.91192242,0.00020041,2]
[358713354,1745400068932,-47.49076858,0.00020041,2]
[358713355,1745400078037,-152.50130338,0.00020041,2]
[358713356,1745400102358,152.50130338,0.00019941,2]
[358713357,1745400123272,-198.06,0.00020031,2]
[358713358,1745400123297,-57.74732337,0.00020031,2]
[358713359,1745400156725,-170.34271849,0.00020031,2]
[358713360,1745400158195,161.65792796,0.00019944,2]
[358713361,1745400163982,-2.31264914,0.00020031,2]
[358713362,1745400164006,-300.0,0.0002004,2]
[358713363,1745400164029,-170.34271849,0.0002004,2]
[358713364,1745400164053,-0.90028901,0.0002004,2]
[358713365,1745400186158,-160.7133882,0.00020039,2]
[358713367,1745400204326,496.42369168,0.0001994,2]
[358713368,1745400245325,-152.79937046,0.00020039,2]
[358713371,1745400301978,-202.4274,0.0002004,2]
[358713373,1745400311309,-300.0,0.00020039,2]
[358713374,1745400343032,-300.0,0.00020039,2]
[358713375,1745400347368,-155.41472256,0.00020039,2]
[358713377,1745400364128,-261.74981285,0.00020039,2]
[358713381,1745400381846,-82.83546459,0.00020039,2]
[358713382,1745400381868,-168.23042709,0.00020039,2]
[358713383,1745400381892,-48.93410832,0.00020039,2]
[358713384,1745400389338,573.86325007,0.0001994,2]
[358713387,1745400394886,-196.37434373,0.00020039,2]
[358713388,1745400399155,-54.69154795,0.00020039,2]
[358713389,1745400399178,-129.81006445,0.00020039,2]
[358713390,1745400403698,-250.0,0.00020039,2]
[358713391,1745400422867,250.0,0.00019939,2]
[358713392,1745400423158,-300.0,0.00020038,2]
[358713414,1745400483112,-230.40778909,0.00020038,2]
[358713422,1745400487567,158.53632526,0.00019941,2]
[358713425,1745400500372,-69.59221091,0.00020038,2]
[358713426,1745400500395,-111.05083777,0.00020038,2]
[358713427,1745400507017,-390.87887501,0.00020038,2]
[358713428,1745400507042,-116.94005303,0.00020038,2]
[358713429,1745400507275,649.88412028,0.000176,2]
[358713430,1745400509237,-312.97084177,0.00020038,2]
[358713431,1745400513943,-70.0891052,0.00020038,2]
[358713432,1745400513967,-109.12112499,0.00020038,2]
[358713433,1745400518219,-199.72391683,0.00020038,2]
[358713434,1745400524265,744.669315,0.0002,120]
[358713436,1745400527407,155.89576871,0.00019,20]
[358713437,1745400527616,170.08487198,0.0002,2]
[358713438,1745400544737,-259.69072741,0.00020037,2]
[358713449,1745400579859,653.54081199,0.00019938,2]
[358713450,1745400580490,-40.30927259,0.00020037,2]
[358713451,1745400580514,-198.97388622,0.00020038,2]
[358713452,1745400580537,-125.86684755,0.00020038,2]
[358713453,1745400594901,10000.0,0.0002,2]
[358713454,1745400601341,1000.0,0.00019939,2]
[358713455,1745400603212,-252.9808,0.00020037,2]
[358713456,1745400608036,-47.0192,0.00020037,2]
[358713457,1745400608059,-110.66300588,0.00020037,2]
[358713458,1745400619624,-423.74934831,0.00020037,2]
[358713470,1745400631737,-76.25065169,0.00020037,2]
[358713472,1745400631747,-500.0,0.00020037,2]
[358713474,1745400631756,-189.33699412,0.00020037,2]
[358713476,1745400631767,-375.8308581,0.00020038,2]
[358713477,1745400631776,-500.0,0.00020038,2]
[358713479,1745400631786,-500.0,0.00020038,2]
[358713480,1745400631795,-500.0,0.00020038,2]
[358713481,1745400631805,-500.0,0.00020038,2]
[358713482,1745400631814,-500.0,0.00020038,2]
[358713483,1745400631823,-267.9999025,0.00020038,2]
[358713484,1745400631838,-232.0000975,0.00020038,2]
[358713485,1745400631848,-500.0,0.00020038,2]
[358713487,1745400631857,-500.0,0.00020038,2]
[358713488,1745400631867,-204.65030844,0.00020038,2]
[358713489,1745400631877,-338.46821561,0.00020038,2]
[358713490,1745400631887,-500.0,0.00020038,2]
[358713491,1745400631896,-500.0,0.00020038,2]
[358713492,1745400631906,-500.0,0.00020038,2]
[358713493,1745400631916,-500.0,0.00020038,2]
[358713494,1745400631926,-500.0,0.00020038,2]
[358713495,1745400631936,-500.0,0.00020038,2]
[358713496,1745400631946,-500.0,0.00020038,2]
[358713497,1745400631955,-500.0,0.00020038,2]
[358713498,1745400631965,-500.0,0.00020038,2]
[358713499,1745400631975,-500.0,0.00020038,2]
[358713500,1745400631985,-500.0,0.00020038,2]
[358713501,1745400631994,-500.0,0.00020038,2]
[358713502,1745400632004,-84.64308664,0.00020038,2]
[358713503,1745400632018,-415.35691336,0.00020038,2]
[358713504,1745400632028,-500.0,0.00020038,2]
[358713505,1745400632038,-500.0,0.00020038,2]
[358713506,1745400632047,-500.0,0.00020038,2]
[358713507,1745400632057,-500.0,0.00020038,2]
[358713508,1745400632067,-500.0,0.00020038,2]
[358713509,1745400632077,-500.0,0.00020038,2]
[358713510,1745400632086,-500.0,0.00020038,2]
[358713511,1745400632096,-500.0,0.00020038,2]
[358713512,1745400632106,-500.0,0.00020038,2]
[358713513,1745400632115,-500.0,0.00020038,2]
[358713514,1745400632124,-500.0,0.00020038,2]
[358713515,1745400632133,-500.0,0.00020038,2]
[358713516,1745400632143,-500.0,0.00020038,2]
[358713517,1745400632152,-500.0,0.00020038,2]
[358713518,1745400632162,-500.0,0.00020038,2]
[358713519,1745400632172,-500.0,0.00020038,2]
[358713520,1745400632181,-500.0,0.00020038,2]
[358713521,1745400632191,-500.0,0.00020038,2]
[358713522,1745400632200,-500.0,0.00020038,2]
[358713523,1745400632210,-500.0,0.00020038,2]
[358713524,1745400632219,-500.0,0.00020038,2]
[358713525,1745400632229,-500.0,0.00020038,2]
[358713526,1745400632238,-500.0,0.00020038,2]
[358713527,1745400632248,-500.0,0.00020038,2]
[358713528,1745400632259,-370.39331463,0.00020038,2]
[358713529,1745400632268,-500.0,0.00020038,2]
[358713530,1745400632278,-500.0,0.00020038,2]
[358713531,1745400632287,-500.0,0.00020038,2]
[358713532,1745400632299,-500.0,0.00020038,2]
[358713533,1745400632310,-247.60885252,0.00020038,2]
[358713534,1745400632320,-500.0,0.00020038,2]
[358713535,1745400632329,-500.0,0.00020038,2]
[358713536,1745400632339,-500.0,0.00020038,2]
[358713537,1745400632348,-387.03933146,0.00020038,2]
[358713538,1745400632357,-500.0,0.00020038,2]
[358713539,1745400632366,-500.0,0.00020038,2]
[358713540,1745400632376,-500.0,0.00020038,2]
[358713541,1745400632386,-500.0,0.00020038,2]
[358713542,1745400632396,-500.0,0.00020038,2]
[358713543,1745400632405,-500.0,0.00020038,2]
[358713544,1745400632414,-500.0,0.00020038,2]
[358713545,1745400632423,-500.0,0.00020038,2]
[358713546,1745400632433,-500.0,0.00020038,2]
[358713547,1745400632442,-500.0,0.00020038,2]
[358713548,1745400632452,-500.0,0.00020038,2]
[358713549,1745400632461,-2342.68,0.00020038,2]
[358713550,1745400632471,-500.0,0.00020038,2]
[358713551,1745400632480,-500.0,0.00020038,2]
[358713552,1745400632489,-7333.18,0.00020038,2]
[358713553,1745400632498,-500.0,0.00020038,2]
[358713554,1745400632507,-500.0,0.00020038,2]
[358713555,1745400632517,-507.17790195,0.00020038,2]
[358713556,1745400632526,-500.0,0.00020038,2]
[358713557,1745400632535,-500.0,0.00020038,2]
[358713558,1745400632545,-42214.26321749,0.00020038,2]
[358713559,1745400632557,-7785.73678251,0.00020038,2]
[358713560,1745400632566,-2745.54993555,0.00020039,2]
[358713561,1745400632575,-501.21128679,0.00020039,2]
[358713562,1745400632585,-500.0,0.00020039,2]
[358713563,1745400632594,-500.0,0.00020039,2]
[358713564,1745400632603,-500.0,0.00020039,2]
[358713565,1745400632612,-500.0,0.00020039,2]
[358713566,1745400632622,-601.32,0.00020039,2]
[358713567,1745400632632,-500.0,0.00020039,2]
[358713568,1745400632641,-500.0,0.00020039,2]
[358713569,1745400632650,-500.0,0.00020039,2]
[358713570,1745400632659,-500.0,0.00020039,2]
[358713571,1745400632670,-380.04483092,0.00020039,2]
[358713572,1745400632679,-500.0,0.00020039,2]
[358713573,1745400632689,-500.0,0.00020039,2]
[358713574,1745400632698,-174.43224277,0.00020039,2]
[358713575,1745400632707,-500.0,0.00020039,2]
[358713576,1745400632717,-1530.8,0.00020039,2]
[358713577,1745400632726,-500.0,0.00020039,2]
[358713578,1745400632736,-9469.11,0.00020039,2]
[358713579,1745400632745,-500.0,0.00020039,2]
[358713580,1745400632756,-500.0,0.00020039,2]
[358713581,1745400632767,-500.0,0.00020039,2]
[358713582,1745400632776,-500.0,0.00020039,2]
[358713583,1745400632785,-500.0,0.00020039,2]
[358713584,1745400632794,-500.0,0.00020039,2]
[358713585,1745400632804,-554.5071866,0.00020039,2]
[358713586,1745400632813,-500.0,0.00020039,2]
[358713587,1745400632824,-4530.67,0.00020039,2]
[358713588,1745400632833,-795.51,0.00020039,2]
[358713589,1745400632843,-500.0,0.00020039,2]
[358713590,1745400632853,-500.0,0.00020039,2]
[358713591,1745400632863,-500.0,0.0002004,2]
[358713592,1745400632873,-500.0,0.0002004,2]
[358713593,1745400632882,-494.28396453,0.0002004,2]
[358713594,1745400632892,-500.0,0.0002004,2]
[358713595,1745400632902,-500.0,0.0002004,2]
[358713596,1745400632912,-651.53,0.0002004,2]
[358713597,1745400632921,-500.0,0.0002004,2]
[358713598,1745400632930,-500.0,0.0002004,2]
[358713599,1745400632940,-500.0,0.0002004,2]
[358713600,1745400632949,-995.49,0.0002004,2]
[358713601,1745400632960,-500.0,0.0002004,2]
[358713602,1745400632969,-1422.43,0.0002004,2]
[358713603,1745400632979,-500.0,0.0002004,2]
[358713604,1745400632988,-500.0,0.0002004,2]
[358713605,1745400632998,-540.4,0.0002004,2]
[358713606,1745400633007,-1264.47,0.0002004,2]
[358713607,1745400633017,-500.11,0.0002004,2]
[358713608,1745400633026,-500.0,0.0002004,2]
[358713609,1745400633036,-500.0,0.0002004,2]
[358713610,1745400633045,-500.0,0.0002004,2]
[358713611,1745400633055,-500.0,0.0002004,2]
[358713612,1745400633065,-500.0,0.0002004,2]
[358713613,1745400633074,-536.72,0.0002004,2]
[358713614,1745400633084,-500.0,0.0002004,2]
[358713615,1745400633094,-500.0,0.0002004,2]
[358713616,1745400633104,-500.0,0.0002004,2]
[358713617,1745400633114,-681.92,0.0002004,2]
[358713618,1745400633125,-500.0,0.0002004,2]
[358713619,1745400633134,-500.0,0.0002004,2]
[358713620,1745400633144,-500.0,0.0002004,2]
[358713621,1745400633153,-500.0,0.0002004,2]
[358713622,1745400633163,-500.0,0.0002004,2]
[358713623,1745400633172,-500.0,0.0002004,2]
[358713624,1745400633182,-500.0,0.0002004,2]
[358713625,1745400633191,-500.0,0.0002004,2]
[358713626,1745400633200,-500.0,0.0002004,2]
[358713627,1745400633209,-500.0,0.0002004,2]
[358713628,1745400633219,-500.0,0.0002004,2]
[358713629,1745400633228,-500.0,0.0002004,2]
[358713630,1745400633237,-500.0,0.0002004,2]
[358713631,1745400633246,-500.0,0.0002004,2]
[358713632,1745400633256,-3948.03,0.0002004,2]
[358713633,1745400633267,-500.0,0.0002004,2]
[358713634,1745400633276,-500.0,0.0002004,2]
[358713635,1745400633286,-507.4570326,0.0002004,2]
[358713636,1745400633297,-500.0,0.0002004,2]
[358713637,1745400633308,-570.49,0.0002004,2]
[358713638,1745400633319,-500.0,0.0002004,2]
[358713639,1745400633329,-500.0,0.0002004,2]
[358713640,1745400633339,-500.0,0.0002004,2]
[358713641,1745400633348,-500.0,0.0002004,2]
[358713642,1745400633357,-500.0,0.0002004,2]
[358713643,1745400633367,-500.0,0.0002004,2]
[358713644,1745400633376,-300.00792804,0.00020041,2]
[358713645,1745400633386,-500.0,0.00020041,2]
[358713646,1745400633396,-500.0,0.00020041,2]
[358713647,1745400633406,-500.0,0.00020041,2]
[358713648,1745400633415,-500.0,0.00020041,2]
[358713649,1745400633425,-500.0,0.00020041,2]
[358713650,1745400633434,-500.0,0.00020041,2]
[358713651,1745400633444,-500.0,0.00020041,2]
[358713652,1745400633453,-500.0,0.00020041,2]
[358713653,1745400633463,-390.65966051,0.00020041,2]
[358713654,1745400633473,-500.0,0.00020041,2]
[358713655,1745400633482,-500.0,0.00020041,2]
[358713656,1745400633492,-500.0,0.00020041,2]
[358713657,1745400633503,-500.0,0.00020041,2]
[358713658,1745400633513,-500.0,0.00020041,2]
[358713659,1745400633523,-500.0,0.00020041,2]
[358713660,1745400633533,-500.0,0.00020041,2]
[358713661,1745400633542,-658.54,0.00020041,2]
[358713662,1745400633553,-503.95944969,0.00020041,2]
[358713663,1745400633564,-404.72627175,0.00020041,2]
[358713664,1745400633573,-500.0,0.00020041,2]
[358713665,1745400633583,-500.0,0.00020041,2]
[358713666,1745400633592,-500.0,0.00020041,2]
[358713667,1745400633601,-500.0,0.00020041,2]
[358713668,1745400633611,-500.0,0.00020041,2]
[358713669,1745400633620,-500.0,0.00020041,2]
[358713670,1745400633630,-500.0,0.00020041,2]
[358713671,1745400633640,-645.66,0.00020041,2]
[358713672,1745400633650,-500.0,0.00020041,2]
[358713673,1745400633660,-500.0,0.00020041,2]
[358713674,1745400633670,-500.0,0.00020041,2]
[358713675,1745400633680,-437.95489577,0.00020041,2]
[358713676,1745400633689,-500.0,0.00020041,2]
[358713677,1745400633698,-500.0,0.00020041,2]
[358713678,1745400633708,-210.56063152,0.00020041,2]
[358713679,1745400633718,-500.0,0.00020041,2]
[358713680,1745400633728,-500.0,0.00020041,2]
[358713681,1745400633738,-500.0,0.00020041,2]
[358713682,1745400633748,-500.0,0.00020041,2]
[358713683,1745400633758,-500.0,0.00020041,2]
[358713684,1745400633768,-500.0,0.00020041,2]
[358713685,1745400633781,-500.0,0.00020041,2]
[358713686,1745400633794,-500.0,0.00020041,2]
[358713687,1745400633811,-500.0,0.00020041,2]
[358713688,1745400633821,-500.0,0.00020041,2]
[358713689,1745400633832,-500.0,0.00020041,2]
[358713690,1745400633842,-500.0,0.00020041,2]
[358713691,1745400633855,-500.0,0.00020041,2]
[358713692,1745400633867,-500.0,0.00020041,2]
[358713693,1745400633879,-500.0,0.00020041,2]
[358713694,1745400633891,-500.0,0.00020041,2]
[358713695,1745400633902,-500.0,0.00020041,2]
[358713696,1745400633912,-500.0,0.00020041,2]
[358713697,1745400633923,-500.0,0.00020041,2]
[358713698,1745400633935,-500.0,0.00020041,2]
[358713699,1745400633945,-500.0,0.00020041,2]
[358713700,1745400633956,-500.0,0.00020041,2]
[358713701,1745400633967,-500.0,0.00020041,2]
[358713702,1745400634183,-500.0,0.00020041,2]
[358713703,1745400634193,-2350.03,0.00020041,2]
[358713704,1745400634203,-2350.03,0.00020041,2]
[358713705,1745400634213,-2350.03,0.00020041,2]
[358713706,1745400634222,-2350.03,0.00020041,2]
[358713707,1745400634232,-500.0,0.00020041,2]
[358713708,1745400634242,-500.0,0.00020041,2]
[358713709,1745400634251,-500.0,0.00020041,2]
[358713710,1745400634261,-255.17242618,0.00020041,2]
[358713711,1745400634271,-500.0,0.00020041,2]
[358713712,1745400634281,-500.0,0.00020041,2]
[358713713,1745400634292,-500.0,0.00020041,2]
[358713714,1745400634303,-500.0,0.00020041,2]
[358713715,1745400634313,-500.0,0.00020041,2]
[358713716,1745400634322,-500.0,0.00020041,2]
[358713717,1745400634332,-500.0,0.00020041,2]
[358713718,1745400634343,-500.0,0.00020041,2]
[358713719,1745400634353,-500.0,0.00020041,2]
[358713720,1745400634362,-500.0,0.00020041,2]
[358713721,1745400634372,-279.63896416,0.00020041,2]
[358713722,1745400634382,-500.0,0.00020041,2]
[358713723,1745400634392,-503.3222478,0.00020041,2]
[358713724,1745400634401,-565.61369137,0.00020041,2]
[358713725,1745400634410,-500.0,0.00020041,2]
[358713726,1745400634420,-500.0,0.00020041,2]
[358713727,1745400634430,-500.0,0.00020041,2]
[358713728,1745400634439,-500.0,0.00020041,2]
[358713729,1745400634449,-523.94895294,0.00020041,2]
[358713730,1745400634458,-500.0,0.00020041,2]
[358713731,1745400634468,-500.0,0.00020041,2]
[358713732,1745400634478,-500.0,0.00020041,2]
[358713733,1745400634487,-500.0,0.00020041,2]
[358713734,1745400634498,-500.0,0.00020041,2]
[358713735,1745400634507,-500.0,0.00020041,2]
[358713736,1745400634517,-500.0,0.00020041,2]
[358713737,1745400634526,-500.0,0.00020041,2]
[358713738,1745400634536,-500.0,0.00020041,2]
[358713739,1745400634545,-519.29,0.00020041,2]
[358713740,1745400634555,-762.57,0.00020041,2]
[358713741,1745400634565,-500.0,0.00020041,2]
[358713742,1745400634574,-296.88581441,0.00020041,2]
[358713743,1745400634584,-500.0,0.00020041,2]
[358713744,1745400634594,-500.0,0.00020041,2]
[358713745,1745400634604,-509.08022442,0.00020041,2]
[358713746,1745400634613,-1865.33,0.00020041,2]
[358713747,1745400634623,-507.94591611,0.00020041,2]
[358713748,1745400634632,-589.27,0.00020041,2]
[358713749,1745400634641,-500.0,0.00020041,2]
[358713750,1745400634651,-500.0,0.00020041,2]
[358713751,1745400634660,-505.03212805,0.00020041,2]
[358713752,1745400634670,-500.0,0.00020043,2]
[358713753,1745400634679,-500.0,0.00020043,2]
[358713754,1745400634689,-500.0,0.00020043,2]
[358713755,1745400634698,-500.0,0.00020043,2]
[358713756,1745400634708,-500.0,0.00020043,2]
[358713757,1745400634717,-500.0,0.00020043,2]
[358713758,1745400634727,-500.0,0.00020043,2]
[358713759,1745400634737,-500.0,0.00020043,2]
[358713760,1745400634747,-500.0,0.00020043,2]
[358713761,1745400634757,-500.0,0.00020043,2]
[358713762,1745400634768,-628.11,0.00020043,2]
[358713763,1745400634778,-500.0,0.00020043,2]
[358713764,1745400634787,-500.0,0.00020043,2]
[358713765,1745400634797,-500.0,0.00020043,2]
[358713766,1745400634806,-500.0,0.00020043,2]
[358713767,1745400634816,-500.0,0.00020043,2]
[358713768,1745400634825,-228.53723621,0.00020043,2]
[358713769,1745400634835,-500.0,0.00020043,2]
[358713770,1745400634844,-500.80925947,0.00020043,2]
[358713771,1745400634854,-500.0,0.00020043,2]
[358713772,1745400634863,-500.0,0.00020043,2]
[358713773,1745400634873,-500.0,0.00020043,2]
[358713774,1745400634883,-500.0,0.00020043,2]
[358713775,1745400634892,-582.21,0.00020043,2]
[358713776,1745400634902,-500.0,0.00020043,2]
[358713777,1745400634911,-500.0,0.00020043,2]
[358713778,1745400634921,-500.0,0.00020043,2]
[358713779,1745400634930,-500.0,0.00020043,2]
[358713780,1745400634940,-500.0,0.00020043,2]
[358713781,1745400634950,-500.0,0.00020043,2]
[358713782,1745400634959,-500.0,0.00020043,2]
[358713783,1745400634969,-500.0,0.00020043,2]
[358713784,1745400634980,-500.0,0.00020043,2]
[358713785,1745400634991,-500.0,0.00020043,2]
[358713786,1745400635001,-500.0,0.00020043,2]
[358713787,1745400635011,-500.0,0.00020043,2]
[358713788,1745400635021,-500.0,0.00020043,2]
[358713789,1745400635031,-2350.03,0.00020043,2]
[358713790,1745400635040,-2350.03,0.00020043,2]
[358713791,1745400635050,-2350.03,0.00020043,2]
[358713792,1745400635060,-2350.03,0.00020043,2]
[358713793,1745400635070,-2350.03,0.00020043,2]
[358713794,1745400635080,-500.0,0.00020043,2]
[358713795,1745400635089,-500.0,0.00020043,2]
[358713796,1745400635100,-500.0,0.00020043,2]
[358713797,1745400635109,-500.0,0.00020043,2]
[358713798,1745400635119,-500.0,0.00020043,2]
[358713799,1745400635129,-151.0,0.00020043,2]
[358713800,1745400635139,-500.0,0.00020043,2]
[358713801,1745400635148,-500.0,0.00020043,2]
[358713802,1745400635158,-500.0,0.00020043,2]
[358713803,1745400635167,-500.0,0.00020043,2]
[358713804,1745400635178,-500.0,0.00020043,2]
[358713805,1745400635187,-500.0,0.00020043,2]
[358713806,1745400635196,-500.0,0.00020043,2]
[358713807,1745400635206,-500.0,0.00020043,2]
[358713808,1745400635215,-500.0,0.00020043,2]
[358713809,1745400635224,-618.9,0.00020043,2]
[358713810,1745400635234,-500.0,0.00020043,2]
[358713811,1745400635243,-500.0,0.00020043,2]
[358713812,1745400635253,-500.0,0.00020043,2]
[358713813,1745400635263,-500.0,0.00020043,2]
[358713814,1745400635273,-500.0,0.00020043,2]
[358713815,1745400635282,-500.0,0.00020043,2]